bitfinex/quotes_SOLUSD_20250207
["timestamp","ask_amount","ask_price","bid_price","bid_amount"]
[1738954954114,0.0001,197.84,197.83,74.96313397]
[1738954954609,0.03,197.9,197.88,20.0]
[1738954954809,0.03,197.9,197.88,44.48762053]
[1738954955125,0.03,197.9,197.89,43.07825906]
[1738954955708,0.03,197.9,197.89,73.20374906]
[1738954955943,0.03,197.9,197.89,74.20374906]
[1738954956106,0.03,197.9,197.89,73.20374906]
[1738954956841,0.03,197.9,197.89,73.96142138]
[1738954957616,81.3,198.02,197.91,30.0]
[1738954957617,24.48762053,198.01,197.91,30.0]
[1738954957818,24.48762053,198.01,197.89,43.96142138]
[1738954957819,24.48762053,198.03,197.96,24.48762053]
[1738954958031,24.48762053,198.03,197.93,13.66282853]
[1738954958032,24.48762053,198.01,197.94,24.48762053]
[1738954958354,24.48762053,197.99,197.93,312.12549]
[1738954958546,5.0499,198.03,197.89,17.6865]
[1738954958547,24.48762053,197.98,197.91,24.61311053]
[1738954958722,24.48762053,197.97,197.91,24.61311053]
[1738954958915,24.48762053,197.99,197.93,13.41184853]
[1738954959117,24.48762053,197.97,197.9,24.48762053]
[1738954959320,24.48762053,197.96,197.89,29.54092053]
[1738954959622,24.48762053,197.96,197.9,38.02495906]
[1738954959819,24.48762053,197.97,197.9,38.02495906]
[1738954960227,24.48762053,197.99,197.92,24.48762053]
[1738954960414,24.48762053,197.98,197.92,24.48762053]
[1738954961513,29.53862053,197.98,197.92,24.48762053]
[1738954962251,29.53862053,197.98,197.92,29.54002053]
[1738954962552,24.48762053,198.01,197.94,24.48762053]
[1738954962853,24.48762053,198.02,197.95,24.48762053]
[1738954963056,24.55062053,198.04,197.97,24.48762053]
[1738954963220,29.60022053,198.04,197.97,24.48762053]
[1738954963719,29.60022053,198.04,197.97,29.53882053]
[1738954963917,0.063,198.04,197.98,37.89946906]
[1738954964143,0.063,198.04,198.0,24.48762053]
[1738954964357,0.063,198.04,198.01,13.41184853]
[1738954964516,0.063,198.04,198.03,24.48762053]
[1738954964849,0.063,198.04,198.01,24.48762053]
[1738954965020,0.063,198.04,198.0,4.2]
[1738954965218,5.1125,198.04,197.95,1.5906]
[1738954965459,5.1125,198.04,197.92,5.0525]
[1738954965632,0.063,198.04,197.92,5.0525]
[1738954965951,0.063,198.04,197.96,20.0]
[1738954966450,24.48762053,197.98,197.93,13.41184853]
[1738954966821,24.48762053,197.94,197.85,5.0543]
[1738954967054,1.0,197.99,197.81,6.2858]
[1738954967055,24.48762053,197.88,197.81,6.2858]
[1738954967224,1.603,197.96,197.81,6.2858]
[1738954967436,0.12549,197.95,197.81,6.2858]
[1738954967632,0.12549,197.95,197.81,11.3411]
[1738954967844,5.052,197.94,197.81,6.2858]
[1738954968055,5.052,197.94,197.81,11.3411]
[1738954968279,24.48762053,197.93,197.86,24.48762053]
[1738954968749,23.09431253,197.93,197.85,24.48762053]
[1738954969051,24.48762053,197.86,197.83,0.063]
[1738954969349,24.48762053,197.85,197.83,0.063]
[1738954969555,24.48762053,197.86,197.83,0.063]
[1738954969855,29.54132053,197.88,197.83,0.063]
[1738954970229,24.48762053,197.87,197.83,0.063]
[1738954970431,24.48762053,197.84,197.83,0.063]
[1738954970743,24.48762053,197.86,197.83,0.063]
[1738954971447,24.48762053,197.84,197.83,0.063]
[1738954971949,29.54212053,197.84,197.83,0.063]
[1738954972865,29.54202053,197.85,197.83,0.063]
[1738954973029,24.48762053,197.84,197.83,0.063]
[1738954974424,29.54212053,197.84,197.83,0.063]
[1738954974623,5.0545,197.84,197.83,0.063]
[1738954975051,5.0538,197.87,197.83,0.063]
[1738954976053,24.48762053,197.89,197.83,0.063]
[1738954976353,5.0535,197.88,197.83,0.063]
[1738954977227,5.0535,197.88,197.84,24.48762053]
[1738954977549,5.0535,197.88,197.85,24.48762053]
[1738954978266,5.0528,197.91,197.85,24.48762053]
[1738954978460,5.0528,197.91,197.86,24.48762053]
[1738954978948,5.0528,197.91,197.87,24.48762053]
[1738954979160,5.0524,197.93,197.89,24.48762053]
[1738954979458,5.0517,197.95,197.91,24.48762053]
[1738954979658,5.0517,197.95,197.89,24.48762053]
[1738954980872,24.48762053,197.93,197.86,24.55062053]
[1738954982454,5.0525,197.92,197.86,24.55062053]
[1738954982669,5.0522,197.94,197.9,24.48762053]
[1738954983034,5.0522,197.94,197.91,24.48762053]
[1738954983236,0.03,197.95,197.93,24.48762053]
[1738954983859,0.03,197.95,197.92,24.48762053]
[1738954984364,0.03,197.95,197.93,24.48762053]
[1738954984535,0.03,197.95,197.94,24.48762053]
[1738954986267,0.03,197.95,197.94,38.15044906]
[1738954986563,0.03,197.95,197.94,73.20244906]
[1738954987153,0.063,198.04,197.99,0.25098]
[1738954987348,0.063,198.04,198.02,24.48762053]
[1738954987774,0.063,198.04,198.01,24.48762053]
[1738954988278,0.063,198.04,197.97,20.0]
[1738954988279,0.063,198.04,198.02,24.48762053]
[1738954988677,0.063,198.04,198.0,24.48762053]
[1738954988855,0.063,198.04,197.99,24.48762053]
[1738954989561,0.063,198.04,198.0,24.48762053]
[1738954990257,0.063,198.04,197.99,24.48762053]
[1738954990667,0.063,198.04,197.96,24.48762053]
[1738954990668,24.48762053,198.03,197.96,24.48762053]
[1738954991689,24.48762053,197.97,197.88,37.56672053]
[1738954991990,24.48762053,197.99,197.91,24.48762053]
[1738954992150,24.48762053,198.0,197.93,24.48762053]
[1738954992649,24.48762053,197.97,197.9,24.48762053]
[1738954992848,24.48762053,197.96,197.89,37.89946906]
[1738954993475,24.48762053,197.98,197.9,24.48762053]
[1738954993873,5.0512,197.97,197.9,24.48762053]
[1738954994763,5.0512,197.97,197.92,24.48762053]
[1738954995067,5.0512,197.97,197.91,24.48762053]
[1738954995662,5.0512,197.97,197.92,24.48762053]
[1738954995879,5.051,197.98,197.92,24.48762053]
[1738954996181,5.051,197.98,197.86,0.063]
[1738954996182,24.48762053,197.93,197.86,0.063]
[1738954996362,24.48762053,197.92,197.86,0.063]
[1738954997853,5.0528,197.91,197.86,0.063]
[1738954999684,5.0528,197.91,197.86,24.55062053]
[1738954999885,24.48762053,197.92,197.86,0.063]
[1738955000183,24.48762053,197.93,197.86,24.55062053]
[1738955000558,29.53962053,197.94,197.86,24.55062053]
[1738955001088,24.48762053,197.93,197.86,24.55062053]
[1738955001479,24.48762053,197.92,197.86,0.063]
[1738955001984,24.48762053,197.93,197.86,24.55062053]
[1738955002291,42.16962053,197.94,197.87,24.48762053]
[1738955002781,5.052,197.94,197.89,24.48762053]
[1738955002977,5.0515,197.96,197.93,24.48762053]
[1738955003189,0.03,197.95,197.93,24.48762053]
[1738955003361,0.03,197.95,197.94,24.48762053]
[1738955004265,0.03,197.95,197.92,24.48762053]
[1738955004876,0.03,197.95,197.94,24.48762053]
[1738955005970,0.03,197.95,197.93,24.48762053]
[1738955006869,0.03,197.95,197.94,24.48762053]
[1738955007798,0.03,197.95,197.93,24.48762053]
[1738955008599,0.03,197.95,197.92,24.48762053]
[1738955008778,0.03,197.95,197.91,24.48762053]
[1738955008968,24.48762053,197.97,197.9,24.48762053]
[1738955009363,24.48762053,197.96,197.89,24.48762053]
[1738955010182,24.48762053,197.95,197.88,24.48762053]
[1738955010382,5.052,197.94,197.88,24.48762053]
[1738955010774,5.052,197.94,197.88,15.31656777]
[1738955011490,5.0512,197.97,197.92,15.31656777]
[1738955011670,5.0512,197.97,197.93,15.31656777]
[1738955011871,5.0505,198.0,197.95,15.31656777]
[1738955012082,5.0505,198.0,197.93,15.31656777]
[1738955012083,20.36706777,198.0,197.93,15.31656777]
[1738955013491,15.31656777,197.98,197.91,20.0]
[1738955013794,15.31656777,197.96,197.88,15.31656777]
[1738955014000,15.31656777,197.96,197.89,15.31656777]
[1738955014209,15.31656777,197.93,197.86,15.37956777]
[1738955014496,15.31656777,197.92,197.86,0.063]
[1738955014884,24.51269328,197.92,197.86,0.063]
[1738955015598,24.51269328,197.93,197.86,0.063]
[1738955015902,24.51269328,197.91,197.86,0.063]
[1738955016787,5.053,197.9,197.86,0.063]
[1738955018496,24.51269328,197.95,197.88,24.51269328]
[1738955018695,5.0517,197.95,197.89,24.51269328]
[1738955018995,5.0517,197.95,197.88,24.51269328]
[1738955019701,24.51269328,197.99,197.91,24.51269328]
[1738955019880,24.51269328,197.99,197.89,13.41184853]
[1738955019881,110.86339328,197.99,197.92,24.51269328]
[1738955020080,86.3507,197.99,197.93,24.51269328]
[1738955021393,86.3507,197.99,197.89,325.41184853]
[1738955021394,5.0507,197.99,197.95,24.51269328]
[1738955021586,0.03,198.0,197.97,24.51269328]
[1738955021784,0.03,198.0,197.98,24.51269328]
[1738955022178,5.0805,198.0,197.96,24.51269328]
[1738955022489,29.59319328,198.0,197.93,24.51269328]
[1738955023887,24.51269328,197.98,197.91,28.65269328]
[1738955024095,24.51269328,197.95,197.88,24.51269328]
[1738955024284,24.51269328,197.94,197.87,32.68129328]
[1738955024597,24.51269328,197.94,197.87,24.51269328]
[1738955024804,24.51269328,197.95,197.88,24.51269328]
[1738955026307,5.052,197.94,197.88,24.51269328]
[1738955028096,5.0515,197.96,197.9,24.51269328]
[1738955028285,5.0515,197.96,197.92,24.51269328]
[1738955028614,5.0512,197.98,197.92,24.51269328]
[1738955029210,5.0512,197.98,197.94,24.51269328]
[1738955030107,5.0512,197.98,197.95,24.51269328]
[1738955030791,5.0512,197.98,197.89,312.0]
[1738955030792,5.0512,197.98,197.91,24.51269328]
[1738955031824,29.56389328,197.98,197.91,24.51269328]
[1738955032606,5.0512,197.98,197.92,24.51269328]
[1738955032798,5.0512,197.98,197.93,24.51269328]
[1738955033117,0.03,198.0,197.96,24.51269328]
[1738955033412,0.03,198.0,197.97,24.51269328]
[1738955033595,0.03,198.0,197.98,24.51269328]
[1738955033791,0.03,198.0,197.97,24.51269328]
[1738955034307,0.03,198.0,197.93,13.41184853]
[1738955034308,5.0806,198.0,197.95,24.51269328]
[1738955034488,0.03,198.0,197.94,24.51269328]
[1738955034805,24.51269328,197.96,197.87,12.3559]
[1738955035110,24.51269328,197.95,197.88,24.51269328]
[1738955036181,5.052,197.94,197.88,24.51269328]
[1738955038014,5.052,197.94,197.89,24.51269328]
[1738955038341,5.052,197.94,197.91,24.51269328]
[1738955038525,5.0512,197.97,197.92,24.51269328]
[1738955038824,5.0512,197.97,197.93,24.51269328]
[1738955039315,5.0512,197.97,197.92,24.51269328]
[1738955039720,5.0512,197.97,197.91,24.51269328]
[1738955040026,0.03,197.95,197.9,24.51269328]
[1738955040315,0.03,197.95,197.91,24.51269328]
[1738955040506,0.03,197.95,197.92,24.51269328]
[1738955041413,0.03,197.95,197.93,24.51269328]
[1738955041638,0.03,197.95,197.94,24.51269328]
[1738955043355,0.03,197.95,197.94,68.17552181]
[1738955043621,0.03,198.0,197.97,13.41184853]
[1738955043821,0.03,198.0,197.99,37.92454181]
[1738955044517,0.03,198.0,197.99,24.51269328]
[1738955045098,0.03,198.0,197.98,24.51269328]
[1738955045495,0.03,198.0,197.94,24.51269328]
[1738955046230,0.03,198.0,197.96,24.51269328]
[1738955047130,0.03,198.0,197.99,24.51269328]
[1738955047315,0.03,198.0,197.95,24.51269328]
[1738955047629,24.54269328,198.0,197.94,24.51269328]
[1738955048010,24.54269328,198.0,197.95,13.41184853]
[1738955048307,24.54269328,198.0,197.95,24.51269328]
[1738955048308,0.03,198.0,197.95,24.51269328]
[1738955048513,0.03,198.0,197.94,37.92454181]
[1738955048713,5.0805,198.0,197.94,37.92454181]
[1738955049110,5.0805,198.0,197.94,24.51269328]
[1738955049311,29.59319328,198.0,197.93,24.51269328]
[1738955049622,24.51269328,197.97,197.92,13.41184853]
[1738955049822,24.51269328,197.97,197.9,24.51269328]
[1738955050127,29.59319328,198.0,197.93,24.51269328]
[1738955050524,5.0805,198.0,197.93,24.51269328]
[1738955050716,5.0805,198.0,197.94,24.51269328]
[1738955050920,5.0805,198.0,197.95,24.51269328]
[1738955051428,5.0805,198.0,197.94,24.51269328]
[1738955051634,29.59319328,198.0,197.93,24.51269328]
[1738955051812,24.51269328,197.98,197.91,24.51269328]
[1738955052325,5.0805,198.0,197.95,24.51269328]
[1738955052704,0.03,198.0,197.95,24.51269328]
[1738955052907,0.03,198.0,197.98,24.51269328]
[1738955053102,0.03,198.0,197.96,24.51269328]
[1738955054135,0.03,198.0,197.95,13.41184853]
[1738955054432,0.03,198.0,197.95,37.92454181]
[1738955056038,0.03,198.0,197.96,24.51269328]
[1738955056336,0.03,198.0,197.95,24.51269328]
[1738955056544,0.03,198.0,197.96,24.51269328]
[1738955056728,0.03,198.0,197.97,24.51269328]
[1738955057041,0.03,198.0,197.98,24.51269328]
[1738955057734,0.03,198.0,197.99,24.51269328]
[1738955060935,0.03,198.0,197.99,42.97524181]
[1738955061236,0.03,198.0,197.99,43.10073181]
[1738955062733,0.03,198.0,197.99,33.88454156]
[1738955063238,0.03,198.0,197.99,64.01003156]
[1738955063435,0.03,198.0,197.99,79.30653459]
[1738955063818,0.03,198.0,197.99,64.01003156]
[1738955066239,0.063,198.04,198.03,43.53733853]
[1738955066420,0.063,198.04,198.03,370.70835156]
[1738955066743,0.063,198.04,198.02,4.08]
[1738955067546,0.063,198.04,198.02,19.37650303]
[1738955067842,0.063,198.04,198.03,28.70835156]
[1738955068142,0.063,198.04,198.03,34.00903156]
[1738955069744,0.063,198.04,198.03,346.00903156]
[1738955071325,5.0766,198.15,198.09,0.12549]
[1738955071519,5.0766,198.15,198.1,15.29650303]
[1738955071726,20.37310303,198.15,198.08,15.29650303]
[1738955073323,15.29650303,198.14,198.07,15.29650303]
[1738955073863,15.29650303,198.11,198.04,15.29650303]
[1738955074157,15.29650303,198.08,198.01,15.29650303]
[1738955074527,15.29650303,198.09,198.02,28.70835156]
[1738955074826,96.59650303,198.1,198.03,15.29650303]
[1738955075058,81.3,198.1,198.05,15.29650303]
[1738955075360,15.29650303,198.13,198.06,15.29650303]
[1738955075723,5.0474,198.12,198.06,15.29650303]
[1738955075929,86.3469,198.14,198.09,15.29650303]
[1738955076330,81.3,198.14,198.09,15.29650303]
[1738955076726,86.347,198.14,198.09,15.29650303]
[1738955077554,86.347,198.14,198.1,15.29650303]
[1738955078049,86.377,198.14,198.09,15.29650303]
[1738955078637,5.077,198.14,198.09,15.29650303]
[1738955078851,0.03,198.14,198.09,327.29650303]
[1738955080047,0.03,198.14,198.09,15.29650303]
[1738955082531,0.03,198.14,198.1,13.41184853]
[1738955082734,0.03,198.14,198.12,15.29650303]
[1738955083153,0.03,198.14,198.13,15.29650303]
[1738955083367,0.03,198.14,198.1,15.29650303]
[1738955083535,0.03,198.14,198.09,15.29650303]
[1738955083733,15.29650303,198.13,198.06,15.29650303]
[1738955083946,15.29650303,198.11,198.05,49.35650303]
[1738955084652,5.0477,198.11,198.06,13.53733853]
[1738955084856,5.0477,198.11,198.06,28.83384156]
[1738955085159,20.34420303,198.11,198.06,13.53733853]
[1738955085455,15.29650303,198.09,198.03,15.29650303]
[1738955085635,15.29650303,198.07,198.02,4.06]
[1738955085838,15.29650303,198.06,198.02,4.06]
[1738955086168,15.29650303,198.06,197.96,218.2]
[1738955086169,15.29650303,198.03,197.96,15.29650303]
[1738955086369,20.0,198.07,197.96,15.29650303]
[1738955086536,20.34580303,198.05,197.98,15.42199303]
[1738955086736,5.0493,198.05,197.99,15.29650303]
[1738955087142,5.0493,198.05,197.98,0.12549]
[1738955087143,5.0489,198.06,198.0,15.29650303]
[1738955088541,20.34540303,198.06,198.0,15.29650303]
[1738955089261,20.34540303,198.06,198.0,327.29650303]
[1738955089658,12.6192,198.11,198.04,15.29650303]
[1738955089659,15.29650303,198.1,198.04,15.29650303]
[1738955090242,15.29650303,198.09,198.02,15.29650303]
[1738955090661,5.0484,198.08,198.02,15.29650303]
[1738955092658,15.29650303,198.07,198.0,15.35950303]
[1738955092862,15.29650303,198.07,198.01,13.41184853]
[1738955093255,20.34490303,198.08,198.01,28.70835156]
[1738955094271,5.0484,198.08,198.02,15.29650303]
[1738955095171,5.0484,198.08,198.03,15.29650303]
[1738955095955,5.0484,198.08,198.02,15.29650303]
[1738955096461,15.29650303,198.09,198.05,15.29650303]
[1738955096462,5.0482,198.09,198.05,15.29650303]
[1738955096967,81.3,198.1,198.08,15.29650303]
[1738955097267,81.3,198.1,198.09,15.29650303]
[1738955097452,5.0477,198.11,198.09,15.29650303]
[1738955097854,5.0471,198.13,198.09,15.29650303]
[1738955098167,5.0471,198.13,198.1,15.29650303]
[1738955098676,5.0471,198.13,198.09,15.29650303]
[1738955100462,5.0471,198.13,198.08,15.29650303]
[1738955100660,5.0471,198.13,198.05,43.41184853]
[1738955100661,5.0471,198.13,198.07,15.29650303]
[1738955100857,5.0471,198.13,198.06,15.29650303]
[1738955100858,20.34360303,198.13,198.06,15.29650303]
[1738955101170,5.0471,198.13,198.07,15.29650303]
[1738955101482,15.29650303,198.11,198.04,15.29650303]
[1738955101684,15.29650303,198.09,198.03,15.29650303]
[1738955101879,81.3,198.11,198.01,15.29650303]
[1738955101880,15.29650303,198.07,198.01,15.29650303]
[1738955102187,15.29650303,198.07,198.01,13.41184853]
[1738955102387,5.0489,198.06,198.04,0.063]
[1738955104052,5.0487,198.07,198.04,0.063]
[1738955104264,5.0482,198.09,198.04,15.35950303]
[1738955104753,5.0482,198.09,198.04,0.063]
[1738955106179,15.29650303,198.08,198.04,0.063]
[1738955106681,5.0482,198.09,198.04,0.063]
[1738955106881,5.0482,198.09,198.04,15.35950303]
[1738955107070,5.0482,198.09,198.04,0.063]
[1738955109090,20.34470303,198.09,198.04,0.063]
[1738955109891,15.29650303,198.05,198.04,0.063]
[1738955110897,20.34570303,198.05,198.04,0.063]
[1738955114164,32.96870303,198.05,198.0,0.063]
[1738955114365,15.29650303,198.01,198.0,0.063]
[1738955115404,15.29650303,198.01,197.95,0.063]
[1738955115696,15.29650303,197.96,197.95,0.063]
[1738955116071,20.34800303,197.96,197.95,0.063]
[1738955118567,20.34800303,197.96,197.95,0.0001]
[1738955118774,20.34800303,197.96,197.94,0.0001]
[1738955119087,97.84748303,197.95,197.94,0.0001]
[1738955119291,97.84748303,197.95,197.87,0.063]
[1738955119292,20.0,197.92,197.87,0.063]
[1738955119460,2.0,197.93,197.87,0.063]
[1738955119461,15.29650303,197.88,197.87,0.063]
[1738955120606,2.0,197.93,197.87,15.35950303]
[1738955120607,5.0522,197.93,197.87,15.35950303]
[1738955120767,5.0522,197.93,197.89,15.29650303]
[1738955120975,5.0522,197.93,197.9,15.29650303]
[1738955122597,5.0522,197.93,197.88,15.29650303]
[1738955122891,5.0522,197.93,197.88,24.50573167]
[1738955124792,5.0522,197.93,197.89,24.50573167]
[1738955124979,81.3,197.94,197.92,24.50573167]
[1738955125184,5.0515,197.97,197.93,24.50573167]
[1738955125793,5.0515,197.97,197.91,24.50573167]
[1738955126294,24.50573167,197.97,197.9,24.50573167]
[1738955126495,24.50573167,197.95,197.89,24.50573167]
[1738955126701,24.50573167,197.95,197.91,0.063]
[1738955127408,24.50573167,197.94,197.91,0.063]
[1738955127701,24.50573167,197.95,197.91,0.063]
[1738955128208,5.052,197.94,197.91,0.063]
[1738955128573,24.50573167,197.93,197.91,0.063]
[1738955128884,105.80573167,197.92,197.91,0.063]
[1738955130385,86.3525,197.92,197.91,0.063]
[1738955131600,81.3,197.92,197.91,0.063]
[1738955132000,5.0523,197.93,197.91,0.063]
[1738955132176,24.50573167,197.92,197.91,0.063]
[1738955133611,29.55823167,197.92,197.91,0.063]
[1738955135183,24.50573167,197.88,197.87,0.063]
[1738955135687,29.55923167,197.88,197.87,0.063]
[1738955136302,20.0,197.85,197.84,0.0001]
[1738955136607,44.50573167,197.85,197.84,0.0001]
[1738955136906,44.50573167,197.85,197.83,0.0001]
[1738955137233,106.05671167,197.84,197.82,0.0001]
[1738955137527,24.75671167,197.83,197.82,0.0001]
[1738955137735,29.81151167,197.83,197.82,0.0001]
[1738955140142,30.81151167,197.83,197.82,0.0001]
[1738955140708,29.56053167,197.83,197.82,0.0001]
[1738955142631,5.0548,197.83,197.82,0.0001]
[1738955143738,5.0545,197.84,197.82,0.0001]
[1738955144941,37.13963167,197.88,197.82,0.0001]
[1738955145115,5.0538,197.87,197.82,24.50583167]
[1738955146531,24.50573167,197.89,197.82,24.50583167]
[1738955146728,5.0535,197.88,197.82,24.50583167]
[1738955148337,24.50573167,197.88,197.82,24.50583167]
[1738955148549,86.353,197.9,197.84,24.50573167]
[1738955148749,86.353,197.9,197.86,24.50573167]
[1738955148955,5.053,197.9,197.86,24.50573167]
[1738955149313,5.053,197.9,197.84,24.50573167]
[1738955150032,5.053,197.9,197.85,24.50573167]
[1738955150248,29.55873167,197.9,197.84,24.50573167]
[1738955151650,17.6856,197.9,197.82,312.0001]
[1738955151843,24.50573167,197.84,197.82,0.0001]
[1738955152022,24.50573167,197.86,197.82,0.0001]
[1738955152756,24.50573167,197.85,197.82,0.0001]
[1738955153542,24.50573167,197.86,197.82,0.0001]
[1738955153763,5.0543,197.85,197.82,0.0001]
[1738955154959,5.054,197.86,197.82,0.0001]
[1738955155368,5.054,197.86,197.83,24.50573167]
[1738955156035,81.3,197.88,197.85,24.50573167]
[1738955156036,86.3537,197.88,197.85,24.50573167]
[1738955156242,81.3,197.88,197.85,24.50573167]
[1738955157155,86.3535,197.88,197.85,24.50573167]
[1738955157352,86.3535,197.88,197.83,24.50573167]
[1738955157554,86.3535,197.88,197.82,0.0001]
[1738955157555,86.3535,197.88,197.82,24.50583167]
[1738955158267,24.50573167,197.87,197.82,0.0001]
[1738955158851,110.85923167,197.88,197.82,0.0001]
[1738955159055,24.50573167,197.85,197.82,0.0001]
[1738955159375,44.50573167,197.85,197.82,0.0001]
[1738955159666,24.50573167,197.84,197.82,0.0001]
[1738955160443,20.0,197.85,197.82,0.0001]
[1738955160444,24.50573167,197.83,197.82,0.0001]
[1738955160864,24.50573167,197.84,197.82,0.0001]
[1738955161070,5.0545,197.84,197.82,0.0001]
[1738955161458,44.50573167,197.83,197.82,0.0001]
[1738955163510,49.81151167,197.83,197.82,0.0001]
[1738955164762,50.81151167,197.83,197.82,0.0001]
[1738955164973,65.2233602,197.83,197.82,0.0001]
[1738955166070,66.46135372,197.83,197.82,0.0001]
[1738955166443,67.70642727,197.83,197.82,0.0001]
[1738955167579,49.81151167,197.83,197.82,0.0001]
[1738955168770,40.64878763,197.83,197.82,0.0001]
[1738955169984,55.06063616,197.83,197.82,0.0001]
[1738955170185,71.40364379,197.83,197.82,0.0001]
[1738955170486,0.25098,197.8,197.75,0.063]
[1738955170687,15.34300763,197.76,197.75,0.063]
[1738955171606,20.39960763,197.76,197.75,0.063]
[1738955171786,20.39960763,197.76,197.75,0.0001]
[1738955171966,20.65058763,197.76,197.75,0.0001]
[1738955172962,20.39960763,197.76,197.75,0.0001]
[1738955174189,5.0566,197.76,197.75,0.0001]
[1738955174980,5.0553,197.81,197.75,15.34310763]
[1738955175173,5.0553,197.81,197.76,15.34300763]
[1738955175382,5.0553,197.81,197.76,16.97540763]
[1738955175570,5.0553,197.81,197.76,1.6324]
[1738955175772,20.39830763,197.81,197.76,1.6324]
[1738955176194,5.0553,197.81,197.76,1.6324]
[1738955176395,5.0553,197.81,197.76,16.97540763]
[1738955176701,5.0553,197.81,197.76,26.16894418]
[1738955177278,5.0551,197.82,197.76,26.16894418]
[1738955177482,5.0551,197.82,197.76,1.6324]
[1738955177674,24.53654418,197.79,197.75,0.0001]
[1738955177878,24.53654418,197.78,197.75,0.0001]
[1738955178100,17.6928,197.82,197.75,0.0001]
[1738955178101,24.53654418,197.77,197.75,0.0001]
[1738955178796,24.53654418,197.76,197.75,0.0001]
[1738955179197,29.59314418,197.76,197.75,0.0001]
[1738955182800,29.84412418,197.76,197.75,0.0001]
[1738955183099,0.25098,197.72,197.65,1.6324]
[1738955183401,24.53654418,197.68,197.65,1.6324]
[1738955183578,81.55098,197.72,197.65,1.6324]
[1738955183579,24.53654418,197.69,197.65,1.6324]
[1738955184286,24.53654418,197.68,197.65,1.6324]
[1738955184608,5.0591,197.66,197.65,1.6324]
[1738955185887,24.53654418,197.7,197.65,1.6324]
[1738955186188,12.6435,197.73,197.65,1.6324]
[1738955186189,24.53654418,197.73,197.66,24.53654418]
[1738955186391,24.53654418,197.7,197.65,1.6324]
[1738955186795,24.53654418,197.69,197.65,1.6324]
[1738955187309,24.53654418,197.7,197.65,1.6324]
[1738955187900,24.53654418,197.71,197.65,26.16894418]
[1738955188097,29.59364418,197.74,197.67,24.53654418]
[1738955188283,24.53654418,197.73,197.67,24.53654418]
[1738955188602,24.53654418,197.7,197.65,1.6324]
[1738955188801,29.59494418,197.69,197.65,1.6324]
[1738955189199,5.0584,197.69,197.65,1.6324]
[1738955190813,25.0581,197.7,197.65,1.6324]
[1738955190985,25.0581,197.7,197.65,26.16894418]
[1738955191886,25.0581,197.7,197.65,1.6324]
[1738955192084,49.59464418,197.7,197.65,1.6324]
[1738955192319,24.53654418,197.69,197.65,1.6324]
[1738955192487,24.53654418,197.66,197.62,6.1757]
[1738955192686,24.53654418,197.65,197.62,6.1757]
[1738955192994,24.53654418,197.63,197.62,6.1757]
[1738955193397,29.59624418,197.64,197.62,6.1757]
[1738955194004,5.0597,197.64,197.62,6.1757]
[1738955194598,5.0594,197.65,197.62,6.1757]
[1738955194785,29.59544418,197.67,197.62,6.1757]
[1738955194986,24.53654418,197.66,197.62,6.1757]
[1738955195307,24.53654418,197.65,197.62,6.1757]
[1738955195804,24.53654418,197.64,197.62,6.1757]
[1738955196194,5.0599,197.63,197.62,6.1757]
[1738955197113,5.0599,197.63,197.62,0.063]
[1738955199213,15.3634536,197.63,197.62,0.063]
[1738955199917,15.3634536,197.63,197.55,1.6617]
[1738955200215,15.3634536,197.59,197.55,1.6617]
[1738955201096,5.0612,197.58,197.55,1.6617]
[1738955202118,20.4246536,197.58,197.55,1.6617]
[1738955202298,15.3634536,197.57,197.55,1.6617]
[1738955203010,15.3634536,197.56,197.52,6.3996]
[1738955203218,15.3634536,197.53,197.5,1.6311]
[1738955203921,15.3634536,197.51,197.47,6.5473]
[1738955204500,15.3634536,197.48,197.4,15.3634536]
[1738955204712,15.3634536,197.46,197.39,45.3634536]
[1738955204914,15.3634536,197.46,197.38,7.8716]
[1738955204915,15.3634536,197.44,197.38,7.8716]
[1738955205216,20.4284536,197.44,197.38,7.8716]
[1738955205418,15.3634536,197.5,197.41,15.3634536]
[1738955205419,15.3634536,197.48,197.41,15.3634536]